fUST/lending_fUST_20240910
["ID","MTS","AMOUNT","RATE_DAILY","PERIOD"]
[337656055,1725919848863,-2217.94,0.00027437,7]
[337656056,1725919849033,-500.0,0.00027437,7]
[337656057,1725919849043,-500.0,0.00027437,7]
[337656058,1725919849052,-502.53622247,0.00027437,7]
[337656059,1725919849062,-360.84611,0.00027437,7]
[337656060,1725919849071,-500.0,0.00027437,7]
[337656061,1725919849081,-360.84611,0.00027437,7]
[337656062,1725919849091,-151.0,0.00027437,7]
[337656063,1725919849101,-500.0,0.00027437,7]
[337656064,1725919849110,-500.0,0.00027437,7]
[337656065,1725919849121,-151.0,0.00027437,7]
[337656066,1725919849130,-500.0,0.00027437,7]
[337656067,1725919849140,-500.0,0.00027437,7]
[337656068,1725919849151,-500.0,0.00027437,7]
[337656069,1725919849161,-853.58,0.00027437,7]
[337656070,1725919849171,-500.0,0.00027437,7]
[337656071,1725919849181,-4857.6,0.00027437,7]
[337656072,1725919849191,-501.663795,0.00027437,7]
[337656073,1725919849201,-717.2,0.00027437,7]
[337656074,1725919849211,-500.0,0.00027437,7]
[337656075,1725919849222,-910.99,0.00027437,7]
[337656076,1725919849231,-320.231444,0.00027437,7]
[337656077,1725919849242,-500.0,0.00027437,7]
[337656078,1725919849252,-503.02724237,0.00027437,7]
[337656079,1725919849263,-320.231444,0.00027437,7]
[337656080,1725919849272,-500.0,0.00027437,7]
[337656081,1725919849282,-983.86,0.00027437,7]
[337656082,1725919849296,-500.0,0.00027437,7]
[337656083,1725919849306,-896.05,0.00027437,7]
[337656084,1725919849316,-500.0,0.00027437,7]
[337656085,1725919849326,-500.0,0.00027437,7]
[337656086,1725919849336,-259.109485,0.00027437,7]
[337656087,1725919849347,-500.0,0.00027437,7]
[337656088,1725919849358,-650.68,0.00027437,7]
[337656089,1725919849369,-259.109485,0.00027437,7]
[337656090,1725919849379,-3927.03,0.00027437,7]
[337656091,1725919849390,-213.748964,0.00027437,7]
[337656092,1725919849400,-500.0,0.00027437,7]
[337656093,1725919849410,-213.748964,0.00027437,7]
[337656094,1725919849421,-500.0,0.00027437,7]
[337656095,1725919849431,-500.0,0.00027437,7]
[337656096,1725919849441,-541.02,0.00027437,7]
[337656097,1725919849451,-501.11443841,0.00027437,7]
[337656098,1725919849461,-2201.26,0.00027437,7]
[337656099,1725919849472,-500.0,0.00027437,7]
[337656100,1725919849483,-500.0,0.00027437,7]
[337656101,1725919849492,-500.0,0.00027437,7]
[337656102,1725919849504,-500.0,0.00027437,7]
[337656103,1725919849514,-500.0,0.00027437,7]
[337656104,1725919849523,-500.0,0.00027437,7]
[337656105,1725919849534,-5117.8,0.00027437,7]
[337656106,1725919849544,-500.0,0.00027437,7]
[337656107,1725919849555,-151.0,0.00027437,7]
[337656108,1725919849567,-151.0,0.00027437,7]
[337656109,1725919849577,-216.55614787,0.00027437,7]
[337656110,1725919849586,-500.0,0.00027437,7]
[337656111,1725919849596,-501.32763763,0.00027437,7]
[337656112,1725919849607,-500.0,0.00027437,7]
[337656113,1725919849618,-500.0,0.00027437,7]
[337656114,1725919849628,-500.0,0.00027437,7]
[337656115,1725919849639,-544.5,0.00027437,7]
[337656116,1725919849651,-500.0,0.00027437,7]
[337656117,1725919849662,-2223.2,0.00027437,7]
[337656118,1725919849672,-1198.04,0.00027437,7]
[337656119,1725919849683,-500.0,0.00027437,7]
[337656120,1725919849692,-1124.27,0.00027437,7]
[337656121,1725919849702,-500.0,0.00027437,7]
[337656122,1725919849712,-290.85437,0.00027437,7]
[337656123,1725919849726,-1705.73,0.00027437,7]
[337656124,1725919849735,-2166.28,0.00027437,7]
[337656125,1725919849746,-290.85437,0.00027437,7]
[337656126,1725919849756,-480.270145,0.00027437,7]
[337656127,1725919849766,-214.503406,0.00027437,7]
[337656128,1725919849776,-214.503406,0.00027437,7]
[337656129,1725919849786,-500.0,0.00027437,7]
[337656130,1725919849795,-3974.78,0.00027437,7]
[337656131,1725919849806,-500.0,0.00027437,7]
[337656132,1725919849815,-500.0,0.00027437,7]
[337656133,1725919849825,-595.28,0.00027437,7]
[337656134,1725919849834,-1688.15,0.00027437,7]
[337656135,1725919849844,-500.0,0.00027437,7]
[337656136,1725919849853,-1226.65,0.00027437,7]
[337656137,1725919849862,-812.76,0.00027437,7]
[337656138,1725919849872,-500.0,0.00027437,2]
[337656139,1725919849882,-579.48,0.00027437,7]
[337656140,1725919849891,-500.0,0.00027437,7]
[337656141,1725919849901,-151.0,0.00027437,7]
[337656142,1725919849912,-718.59,0.00027437,7]
[337656143,1725919849926,-500.0,0.00027437,7]
[337656144,1725919849936,-500.0,0.00027437,7]
[337656145,1725919849946,-771.28,0.00027437,7]
[337656146,1725919849956,-500.0,0.00027437,7]
[337656147,1725919849968,-531.71035342,0.00027437,7]
[337656148,1725919849979,-1565.33,0.00027437,7]
[337656149,1725919849989,-500.0,0.00027437,7]
[337656150,1725919850000,-532.579088,0.00027437,7]
[337656151,1725919850010,-500.0,0.00027437,7]
[337656152,1725919850020,-1622.17,0.00027437,7]
[337656153,1725919850033,-532.579088,0.00027437,7]
[337656154,1725919850045,-298.74964935,0.00027437,7]
[337656155,1725919850055,-500.0,0.00027437,7]
[337656156,1725919850065,-154.074996,0.00027437,7]
[337656157,1725919850075,-1385.82,0.00027437,7]
[337656158,1725919850085,-2011.46,0.00027437,7]
[337656159,1725919850095,-151.0,0.00027437,7]
[337656160,1725919850104,-754.68,0.00027437,7]
[337656161,1725919850114,-500.0,0.00027437,7]
[337656162,1725919850123,-156.890136,0.00027437,7]
[337656163,1725919850132,-500.0,0.00027437,7]
[337656164,1725919850142,-859.21,0.00027437,7]
[337656165,1725919850151,-500.0,0.00027437,7]
[337656166,1725919850161,-151.0,0.00027437,7]
[337656167,1725919850172,-1643.4,0.00027437,7]
[337656168,1725919850185,-500.0,0.00027437,7]
[337656169,1725919850196,-1882.7,0.00027437,7]
[337656170,1725919850208,-500.0,0.00027437,7]
[337656171,1725919850219,-500.0,0.00027437,7]
[337656172,1725919850230,-548.41,0.00027437,7]
[337656173,1725919850240,-644.58,0.00027437,7]
[337656174,1725919850251,-500.0,0.00027448,7]
[337656175,1725919850263,-500.0,0.00027448,7]
[337656176,1725919850274,-500.0,0.00027448,7]
[337656177,1725919850285,-500.0,0.00027448,7]
[337656178,1725919850295,-589.5,0.00027448,7]
[337656179,1725919850305,-500.0,0.00027448,7]
[337656180,1725919850317,-502.12412513,0.00027449,7]
[337656181,1725919850327,-358.4850641,0.00027449,7]
[337656182,1725919850337,-500.0,0.00027449,7]
[337656183,1725919850349,-501.59963453,0.00027449,7]
[337656184,1725919850358,-519.48360018,0.00027449,2]
[337656185,1725919850368,-500.0,0.00027449,7]
[337656186,1725919850377,-500.0,0.00027449,7]
[337656187,1725919850387,-627.47745446,0.00027449,7]
[337656188,1725919850399,-500.0,0.00027449,7]
[337656189,1725919850412,-500.0,0.00027449,7]
[337656190,1725919850422,-500.0,0.00027449,7]
[337656191,1725919850432,-500.0,0.00027449,7]
[337656192,1725919850443,-500.0,0.00027449,7]
[337656193,1725919850455,-577.38,0.00027449,7]
[337656194,1725919850466,-500.0,0.00027449,7]
[337656195,1725919850476,-648.9,0.00027449,7]
[337656196,1725919850486,-694.35,0.00027449,7]
[337656197,1725919850496,-662.3,0.00027449,7]
[337656198,1725919850507,-753.6,0.00027449,7]
[337656199,1725919850516,-655.58,0.00027449,7]
[337656200,1725919850527,-757.81,0.00027449,7]
[337656201,1725919850537,-2191.91,0.00027449,7]
[337656202,1725919850547,-1288.218274,0.00027449,7]
[337656203,1725919850556,-1288.218274,0.00027449,7]
[337656204,1725919850565,-500.0,0.00027449,7]
[337656205,1725919850576,-606.33,0.00027449,7]
[337656206,1725919850585,-500.0,0.00027449,7]
[337656207,1725919850597,-151.250872,0.00027449,2]
[337656208,1725919850608,-1906.16,0.00027449,7]
[337656209,1725919850619,-151.0,0.00027449,7]
[337656210,1725919850631,-917.18,0.00027449,7]
[337656211,1725919850642,-500.0,0.00027449,7]
[337656212,1725919850653,-596.45,0.00027449,7]
[337656213,1725919850663,-158.39303,0.00027449,7]
[337656214,1725919850672,-532.579088,0.00027449,7]
[337656215,1725919850682,-532.579088,0.00027449,7]
[337656216,1725919850695,-152.803863,0.00027449,7]
[337656217,1725919850706,-151.0,0.00027449,7]
[337656218,1725919850719,-3184.74,0.00027601,7]
[337656219,1725919850729,-7029.39,0.00027601,7]
[337656220,1725919850739,-1314.29,0.00027601,7]
[337656221,1725919850749,-1549.17,0.00027601,7]
[337656222,1725919850759,-1317.42,0.00027601,7]
[337656223,1725919850770,-5020.26,0.00027608,7]
[337656224,1725919850780,-500.0,0.00027608,7]
[337656225,1725919850790,-4687.79,0.00027608,7]
[337656226,1725919850801,-8070.1,0.00027608,7]
[337656227,1725919850815,-1711.78,0.00027608,7]
[337656228,1725919850826,-1179.98,0.00027608,7]
[337656229,1725919850836,-1496.29,0.00027608,7]
[337656230,1725919850847,-290.85437,0.00027608,7]
[337656231,1725919850857,-500.0,0.00027608,7]
[337656232,1725919850867,-193.20600227,0.00027608,7]
[337656233,1725920080894,174.461421,0.00024932,2]
[337656237,1725920173278,3000.0,0.00024818,2]
[337656238,1725920257230,400.0,0.00028,120]
[337656239,1725920269554,251.0,0.0002479,2]
[337656240,1725920289574,390.0,0.00025,2]
[337656243,1725920416889,479.655075,0.000248,2]
[337656244,1725920458316,250.0,0.00024787,2]
[337656245,1725920478639,24900.0,0.00024825,2]
[337656250,1725920617605,171.634967,0.00024451,2]
[337656251,1725920651608,250.0,0.00024997,2]
[337656257,1725920675872,2108.39956313,0.00024965,2]
[337656277,1725920724998,302.30477158,0.0002484,6]
[337656278,1725920730706,3000.0,0.00024636,2]
[337656290,1725920890941,1844.84961773,0.00024965,2]
[337656292,1725920908777,239.827538,0.00024493,2]
[337656293,1725920922753,1032.1039127,0.00025,2]
[337656294,1725920925355,428456.9184955,0.00025,2]
[337656295,1725920925567,54468.10283948,0.00025,2]
[337656297,1725920950175,-300.0,0.00024999,2]
[337656298,1725920950198,-300.0,0.00024999,2]
[337656299,1725920950220,-8410.28682814,0.00025,2]
[337656331,1725921031869,-300.0,0.00024043,2]
[337656332,1725921031879,-5722.27666547,0.00024044,2]
[337656337,1725921034643,-3597.60843555,0.00024044,2]
[337656338,1725921034657,-15580.11489898,0.00024044,2]
[337656339,1725921034667,-410.28,0.0002499,3]
[337656340,1725921034676,-547.04,0.0002499,3]
[337656341,1725921034686,-9730.53,0.0002499,3]
[337656342,1725921034695,-273.52,0.0002499,3]
[337656343,1725921034705,-5683.5912418,0.0002499,3]
[337656346,1725921037824,-820.6,0.0002499,3]
[337656347,1725921037835,-500.0,0.00024999,2]
[337656348,1725921037846,-500.0,0.00024999,2]
[337656349,1725921037856,-500.0,0.00024999,2]
[337656350,1725921037865,-500.0,0.00024999,2]
[337656351,1725921037875,-500.0,0.00024999,2]
[337656352,1725921037884,-500.0,0.00024999,2]
[337656353,1725921037896,-500.0,0.00024999,2]
[337656354,1725921037906,-500.0,0.00024999,2]
[337656355,1725921037916,-500.0,0.00024999,2]
[337656357,1725921037927,-500.0,0.00024999,2]
[337656358,1725921037937,-500.0,0.00024999,2]
[337656359,1725921037947,-555.4432562,0.00024999,2]
[337656360,1725921037957,-186.22114658,0.00024999,2]
[337656361,1725921037970,-254.9416659,0.00024999,2]
[337656362,1725921037979,-500.0,0.00024999,2]
[337656363,1725921037988,-500.0,0.00024999,2]
[337656364,1725921037997,-500.0,0.00024999,2]
[337656365,1725921038007,-500.0,0.00024999,2]
[337656366,1725921038019,-500.0,0.00024999,2]
[337656367,1725921038031,-500.0,0.00024999,2]
[337656368,1725921038041,-500.0,0.00024999,2]
[337656369,1725921038051,-500.0,0.00024999,2]
[337656370,1725921038061,-500.0,0.00024999,2]
[337656371,1725921038070,-500.0,0.00024999,2]
[337656372,1725921038080,-500.0,0.00024999,2]
[337656373,1725921038091,-500.0,0.00024999,2]
[337656374,1725921038100,-500.0,0.00024999,2]
[337656375,1725921038109,-500.0,0.00024999,2]
[337656376,1725921038120,-500.0,0.00024999,2]
[337656377,1725921038130,-500.0,0.00024999,2]
[337656378,1725921038139,-500.0,0.00024999,2]
[337656379,1725921038149,-500.0,0.00024999,2]
[337656380,1725921038159,-500.0,0.00024999,2]
[337656381,1725921038169,-500.0,0.00024999,2]
[337656382,1725921038178,-500.0,0.00024999,2]
[337656383,1725921038187,-500.0,0.00024999,2]
[337656384,1725921038196,-500.0,0.00024999,2]
[337656385,1725921038206,-500.0,0.00024999,2]
[337656386,1725921038216,-500.0,0.00024999,2]
[337656387,1725921038227,-500.0,0.00024999,2]
[337656388,1725921038237,-500.0,0.00024999,2]
[337656389,1725921038246,-500.0,0.00024999,2]
[337656390,1725921038255,-500.0,0.00024999,2]
[337656391,1725921038264,-500.0,0.00024999,2]
[337656392,1725921038274,-500.0,0.00024999,2]
[337656393,1725921038284,-500.0,0.00024999,2]
[337656394,1725921038294,-500.0,0.00024999,2]
[337656395,1725921038305,-500.0,0.00024999,2]
[337656396,1725921038314,-500.0,0.00024999,2]
[337656397,1725921038323,-500.0,0.00024999,2]
[337656398,1725921038334,-558.60845595,0.00024999,2]
[337656399,1725921038346,-500.0,0.00024999,2]
[337656400,1725921038356,-500.0,0.00024999,2]
[337656401,1725921038366,-500.0,0.00024999,2]
[337656402,1725921038380,-500.0,0.00024999,2]
[337656403,1725921038389,-500.0,0.00024999,2]
[337656404,1725921038398,-500.0,0.00024999,2]
[337656405,1725921038408,-500.0,0.00024999,2]
[337656406,1725921038418,-500.0,0.00024999,2]
[337656407,1725921038428,-500.0,0.00024999,2]
[337656408,1725921038439,-500.0,0.00024999,2]
[337656409,1725921038450,-500.0,0.00024999,2]
[337656410,1725921038460,-262.0957561,0.00024999,2]
[337656411,1725921038469,-500.0,0.00024999,2]
[337656412,1725921038479,-500.0,0.00024999,2]
[337656413,1725921038489,-500.0,0.00024999,2]
[337656414,1725921038499,-500.0,0.00024999,2]
[337656415,1725921038508,-500.0,0.00024999,2]
[337656416,1725921038517,-500.0,0.00024999,2]
[337656417,1725921038526,-500.0,0.00024999,2]
[337656418,1725921038535,-500.0,0.00024999,2]
[337656419,1725921038544,-500.0,0.00024999,2]
[337656420,1725921038553,-500.0,0.00024999,2]
[337656421,1725921038563,-500.0,0.00024999,2]
[337656422,1725921038572,-500.0,0.00024999,2]
[337656423,1725921038583,-500.0,0.00024999,2]
[337656424,1725921038593,-500.0,0.00024999,2]
[337656425,1725921038604,-500.0,0.00024999,2]
[337656426,1725921038613,-500.0,0.00024999,2]
[337656427,1725921038623,-500.0,0.00024999,2]
[337656428,1725921038633,-500.0,0.00024999,2]
[337656429,1725921038642,-500.0,0.00024999,2]
[337656430,1725921038652,-500.0,0.00024999,2]
[337656431,1725921038661,-500.0,0.00024999,2]
[337656432,1725921038671,-500.0,0.00024999,2]
[337656433,1725921038680,-500.0,0.00024999,2]
[337656434,1725921038689,-500.0,0.00024999,2]
[337656435,1725921038700,-500.0,0.00024999,2]
[337656436,1725921038711,-500.0,0.00024999,2]
[337656437,1725921038720,-500.0,0.00024999,2]
[337656438,1725921038730,-500.0,0.00024999,2]
[337656439,1725921038739,-500.0,0.00024999,2]
[337656440,1725921038747,-500.0,0.00024999,2]
[337656441,1725921038757,-12627.20055796,0.00025,2]
[337656442,1725921038766,-43464.33736296,0.00025,2]
[337656443,1725921038779,-13015.60748662,0.00025,2]
[337656444,1725921038788,-10364.0,0.00025,2]
[337656445,1725921038798,-576.19436291,0.00025,2]
[337656446,1725921038807,-1800.0,0.00025039,2]
[337656447,1725921038817,-500.0,0.00025039,2]
[337656448,1725921038826,-500.0,0.00025039,2]
[337656449,1725921038835,-441.23004909,0.00025039,2]
[337656450,1725921038844,-500.0,0.00025039,2]
[337656451,1725921038853,-500.0,0.00025039,2]
[337656452,1725921038862,-500.0,0.00025039,2]
[337656453,1725921038871,-500.0,0.00025039,2]
[337656454,1725921038881,-23348.75018072,0.0002504,2]
[337656455,1725921038894,-10365.45343518,0.0002504,2]
[337656482,1725921039878,-3609.0979929,0.0002504,2]
[337656484,1725921039889,-250.0,0.00025066,2]
[337656486,1725921039899,-1213.74647966,0.00025078,2]
[337656488,1725921039909,-500.0,0.00025089,2]
[337656490,1725921039919,-281.58528114,0.00025089,2]
[337656492,1725921039929,-500.0,0.00025089,2]
[337656493,1725921039939,-572.7603535,0.00025089,2]
[337656495,1725921039948,-176.39164925,0.00025089,2]
[337656497,1725921039958,-500.0,0.00025089,2]
[337656498,1725921039968,-500.0,0.00025089,2]
[337656500,1725921039978,-500.0,0.00025089,2]
[337656501,1725921039989,-500.0,0.00025089,2]
[337656502,1725921039999,-192013.50253913,0.0002509,2]
[337656503,1725921040010,-250.0,0.00025134,2]
[337656504,1725921040020,-250.0,0.00025203,2]
[337656505,1725921040030,-250.0,0.00025271,2]
[337656506,1725921040039,-500.0,0.00025313,2]
[337656507,1725921040048,-500.0,0.00025313,2]
[337656508,1725921040058,-500.0,0.00025313,2]
[337656509,1725921040067,-500.0,0.00025313,2]
[337656510,1725921040077,-500.0,0.00025313,2]
[337656511,1725921040086,-3184.74,0.00025318,2]
[337656512,1725921040095,-6736.49,0.00025318,2]
[337656513,1725921040105,-1314.29,0.00025318,2]
[337656514,1725921040115,-500.0,0.00025318,2]
[337656515,1725921040124,-1549.17,0.00025318,2]
[337656516,1725921040134,-1317.42,0.00025318,2]
[337656517,1725921040143,-1577.18,0.00025318,2]
[337656518,1725921040153,-192.58900396,0.00025319,2]
[337656519,1725921040163,-250.0,0.0002534,2]
[337656520,1725921040172,-250.0,0.00025408,2]
[337656521,1725921040182,-250.0,0.00025477,2]
[337656522,1725921040192,-250.0,0.00025545,2]
[337656523,1725921040202,-500.0,0.00025587,2]
[337656524,1725921040218,-590.14570053,0.00025587,2]
[337656525,1725921040229,-500.0,0.00025587,2]
[337656526,1725921040239,-537.15091523,0.00025587,2]
[337656527,1725921040248,-3184.74,0.00025592,2]
[337656528,1725921040258,-6736.49,0.00025592,2]
[337656529,1725921040267,-1314.29,0.00025592,2]
[337656530,1725921040277,-1549.17,0.00025592,2]
[337656531,1725921040287,-1317.42,0.00025592,2]
[337656532,1725921040297,-1577.18,0.00025592,2]
[337656533,1725921040308,-250.0,0.00025614,2]
[337656534,1725921040317,-250.0,0.00025682,2]
[337656535,1725921040326,-250.0,0.00025751,2]
[337656536,1725921040335,-250.0,0.0002582,2]
[337656537,1725921040347,-500.0,0.00025861,2]
[337656538,1725921040357,-500.0,0.00025861,2]
[337656539,1725921040366,-1844.84961768,0.00025864,2]
[337656540,1725921040378,-3184.74,0.00025866,2]
[337656541,1725921040388,-6736.49,0.00025866,2]
[337656542,1725921040398,-1314.29,0.00025866,2]
[337656543,1725921040556,-1549.17,0.00025866,2]
[337656544,1725921040566,-1317.42,0.00025866,2]
[337656545,1725921040576,-1577.18,0.00025866,2]
[337656546,1725921040585,-500.0,0.00025881,2]
[337656547,1725921040595,-902.33830877,0.00025882,2]
[337656548,1725921040604,-507.88213887,0.00025882,2]
[337656549,1725921040614,-5020.26,0.00025882,2]
[337656550,1725921040624,-500.0,0.00025882,2]
[337656551,1725921040634,-4687.79,0.00025882,2]
[337656552,1725921040643,-9222.97,0.00025882,2]
[337656553,1725921040653,-1711.78,0.00025882,2]
[337656554,1725921040663,-983.31,0.00025882,2]
[337656555,1725921040672,-1496.29,0.00025882,2]
[337656556,1725921040682,-500.0,0.00025882,2]
[337656557,1725921040692,-931.31,0.00025882,2]
[337656558,1725921040701,-2068.56,0.00025882,2]
[337656559,1725921040711,-500.0,0.00025882,2]
[337656560,1725921040721,-1818.59,0.00025882,2]
[337656561,1725921040731,-533.48,0.00025882,2]
[337656562,1725921040743,-500.0,0.00025882,2]
[337656563,1725921040753,-272.50098039,0.00025882,2]
[337656564,1725921040763,-62511.52,0.00025882,2]
[337656565,1725921040776,-500.0,0.00025882,2]
[337656566,1725921040786,-2383.41,0.00025882,2]
[337656567,1725921040795,-2144.08,0.00025882,2]
[337656568,1725921040804,-250.0,0.00025888,2]
[337656569,1725921040813,-250.0,0.00025957,2]
[337656570,1725921040823,-524.13295097,0.00026,2]
[337656571,1725921040835,-271.91509449,0.00026025,2]
[337656572,1725921040845,-250.0,0.00026025,2]
[337656573,1725921040855,-637.04466407,0.00026086,2]
[337656574,1725921040864,-500.0,0.00026086,2]
[337656575,1725921040874,-500.0,0.00026086,2]
[337656576,1725921040885,-500.0,0.00026086,2]
[337656577,1725921040894,-310.8157173,0.00026086,2]
[337656578,1725921040904,-500.7970442,0.00026086,2]
[337656579,1725921040913,-250.0,0.00026094,2]
[337656580,1725921040923,-500.0,0.00026103,2]
[337656581,1725921040934,-500.0,0.00026103,2]
[337656582,1725921040944,-174.54309633,0.00026103,2]
[337656583,1725921040954,-160079.477214,0.00026104,4]
[337656584,1725921040964,-410.28,0.00026114,3]
[337656585,1725921040974,-4034.63277622,0.00026114,4]
[337656589,1725921042876,-13106.57,0.0002499,3]
[337656590,1725921042886,-2217.94,0.00025882,2]
[337656591,1725921042895,-35726.65723236,0.00026114,4]
[337656614,1725921045936,-500.0,0.00025039,2]
[337656615,1725921045945,-500.0,0.00025313,2]
[337656616,1725921045954,-500.0,0.00025587,2]
[337656617,1725921045963,-500.0,0.00025861,2]
[337656618,1725921045973,-39.82286284,0.00026114,4]
[337656619,1725921045988,-520.430295,0.00026114,4]
[337656620,1725921046003,-6335.98653308,0.00026114,4]
[337656621,1725921046058,-4079.85030908,0.00026114,4]
[337656639,1725921658498,151.0,0.00024994,7]
[337656640,1725921680684,150.112233,0.00025,10]
[337656641,1725921681038,150.112233,0.00025,10]
[337656642,1725921681424,150.112233,0.00025,7]
[337656643,1725921681765,150.112233,0.00025,6]
[337656644,1725921682159,150.112234,0.00025,9]
[337656645,1725921703987,151.0,0.00024994,7]
[337656646,1725921704070,532.579088,0.00024994,7]
[337656647,1725921708447,244.869803,0.00024994,7]
[337656648,1725921708806,532.579088,0.00024994,7]
[337656649,1725921711276,259.109485,0.00024994,7]
[337656650,1725921715658,259.109485,0.00024994,7]
[337656651,1725921722936,154.074996,0.00024994,7]
[337656652,1725921727457,151.0,0.00024994,7]
[337656653,1725921765239,151.0,0.00024994,7]
[337656654,1725921774412,240.929274,0.00024994,7]
[337656655,1725921778372,240.929274,0.00024994,7]
[337656656,1725921817637,502.222727,0.00024989,7]
[337656657,1725921821413,502.222727,0.00024989,7]
[337656658,1725921825097,151.0,0.00024989,7]
[337656659,1725921825166,151.975802,0.00025,7]
[337656660,1725921841051,213.748964,0.00024989,7]
[337656661,1725921845103,213.748964,0.00024989,7]
[337656662,1725921848250,151.0,0.00024989,7]
[337656663,1725921848593,151.0,0.00025,7]
[337656664,1725921851507,151.0,0.00024989,7]
[337656665,1725921851818,151.0,0.00025,7]
[337656666,1725921853002,151.0,0.00024989,7]
[337656667,1725921853285,151.0,0.00025,7]
[337656668,1725921884320,151.0,0.00024976,7]
[337656669,1725921884620,151.0,0.00024977,7]
[337656670,1725921884919,152.267018,0.00024979,7]
[337656671,1725921895156,151.0,0.00024976,7]
[337656672,1725921895469,151.0,0.00024977,7]
[337656673,1725921895806,151.0,0.00024979,7]
[337656674,1725921895980,290.85437,0.00024976,7]
[337656675,1725921896106,195.219399,0.00024989,7]
[337656676,1725921896627,290.85437,0.00024977,7]
[337656677,1725921896925,290.85437,0.00024979,7]
[337656678,1725921897231,290.85437,0.00024989,7]
[337656679,1725921898205,290.85437,0.00025,7]
[337656683,1725921900030,290.85437,0.00024976,7]
[337656697,1725921900381,290.85437,0.00024977,7]
[337656698,1725921900911,290.85437,0.00024979,7]
[337656700,1725921901527,290.85437,0.00024989,7]
[337656702,1725921902233,290.85437,0.00025,7]
[337656703,1725921902981,364.409165,0.00024976,7]
[337656704,1725921903713,364.409165,0.00024977,7]
[337656705,1725921904687,364.409165,0.00024979,7]
[337656706,1725921905179,364.409165,0.00024989,7]
[337656707,1725921905527,364.409165,0.00025,7]
[337656708,1725921908615,364.409165,0.00024976,7]
[337656709,1725921908695,364.409165,0.00024977,7]
[337656710,1725921908971,364.409165,0.00024979,7]
[337656711,1725921909456,364.409165,0.00024989,7]
[337656712,1725921909935,364.409165,0.00025,7]
[337656713,1725921917670,151.0,0.00024976,7]
[337656714,1725921918048,151.0,0.00024977,7]
[337656715,1725921918510,151.0,0.00024979,7]
[337656716,1725921919028,151.0,0.00024989,7]
[337656717,1725921919237,151.0,0.00025,7]
[337656718,1725921927223,151.0,0.00024967,7]
[337656719,1725921927545,151.0,0.00024977,7]
[337656720,1725921927857,151.0,0.00024979,7]
[337656721,1725921928183,153.27854,0.00024989,7]
[337656725,1725921932773,151.0,0.00024967,7]
[337656726,1725921933275,230.797355,0.00024977,7]
[337656727,1725921942785,151.0,0.00024967,7]
[337656728,1725921943187,151.0,0.00024977,7]
[337656729,1725921944281,155.824142,0.00024979,7]
[337656730,1725921967667,151.0,0.00024976,7]
[337656731,1725921968006,151.0,0.00024977,7]
[337656732,1725921968394,151.0,0.00024979,7]
[337656733,1725921968759,151.0,0.00024989,7]
[337656734,1725921969377,151.0,0.00025,7]
[337656735,1725921971921,151.0,0.00024976,7]